Cogmind - Beta 9.4 @@@ ROGUE MODE // 2020.02.16 @ 18:01:35 // Winter2019/RPGLIKE Player: Exeight Result: Smashed by cave-in Performance ------------- Evolutions (2) 1000 Regions Visited (6) 1200 Robots Destroyed (75) 375 Value Destroyed (1878) 1878 Prototype IDs (6) 120 Alien Tech Used (0) 0 Bonus (-80) -80 TOTAL SCORE: 4493 Bonus ------- High Alert Combat Kills 31 Follower Combat Kills 7 Friendly Fire -118 Cogmind --------- Core Integrity 0/600 Matter 4/300 Energy 275/275 System Corruption 0% Temperature Cool (190) Movement Treading (160) Location -8/Storage Parts ------- > --- POWER (1) -------- Deuterium Engine > --- PROPULSION (2) --- Light Treads Light Treads > --- UTILITY (7) ------ Improved Heat Sink Makeshift Salvage Targeting Computer Advanced Targeting Computer Advanced Targeting Computer Target Analyzer Core Analyzer Recoil Stabilizer > --- WEAPON (4) ------- Gauss Cannon Gauss Cannon Gauss Cannon Gauss Cannon > --- INVENTORY (1) ---- Experimental Sensor Array Peak State ------------ > --- POWER ------------ Deuterium Engine > --- PROPULSION ------- Light Treads Aerolev Unit > --- UTILITY ---------- Improved Heat Sink Makeshift Salvage Targeting Computer Advanced Targeting Computer Advanced Targeting Computer Target Analyzer Core Analyzer > --- WEAPON ----------- Gauss Cannon Gauss Cannon Gauss Cannon Gauss Cannon > --- INVENTORY -------- Experimental Sensor Array [Rating: 44] Favorites ----------- Power Ion Engine Engine Ion Engine Power Core Light Nuclear Core Propulsion Light Treads Treads Light Treads Hover Unit Aerolev Unit Utility Target Analyzer Device Improved Heat Sink Processor Target Analyzer Weapon Light Cannon Energy Gun EM Pulse Gun Ballistic Gun Minigun Ballistic Cannon Light Cannon Launcher Grenade Launcher Build | -11 -10 -10 -10 -9 -8 -8 ------- Run | Scr Mat Min Exi Min Mat Sto Slots Evolved 10 | 2 1 . 1 . 5 1 Power . | . . . . . . . Propulsion 1 | 1 . . . . . . Utility 6 | . . . 1 . 4 1 Weapon 3 | 1 1 . . . 1 . Parts Attached 34 | 5 2 2 2 . 18 5 Power 4 | 1 . . . . 2 1 Engine 3 | 1 . . . . 1 1 Core 1 | . . . . . 1 . Reactor . | . . . . . . . Propulsion 4 | 2 . . . . . 2 Treads 3 | 2 . . . . . 1 Leg . | . . . . . . . Wheel . | . . . . . . . Hover 1 | . . . . . . 1 Flight . | . . . . . . . Utility 8 | . . . 2 . 5 1 Device 2 | . . . . . 1 1 Storage . | . . . . . . . Processor 6 | . . . 2 . 4 . Hackware . | . . . . . . . Protection . | . . . . . . . Artifact . | . . . . . . . Weapon 18 | 2 2 2 . . 11 1 Energy Gun 2 | 2 . . . . . . Energy Cannon . | . . . . . . . Ballistic Gun 6 | . 1 . . . 5 . Ballistic Cannon 9 | . . 2 . . 6 1 Launcher 1 | . 1 . . . . . Special Weapon . | . . . . . . . Impact Weapon . | . . . . . . . Slashing Weapon . | . . . . . . . Piercing Weapon . | . . . . . . . Special Melee Weapon . | . . . . . . . Unidentified Prototypes 2 | . . . . . 1 1 Parts Lost . | . . . . . . . Power . | . . . . . . . Propulsion . | . . . . . . . Utility . | . . . . . . . Weapon . | . . . . . . . Highest Loss Streak . | . . . . . . . Average Slot Usage (%) 93 | . 84 84 93 100 98 98 Engine 10 | . 14 14 12 12 4 7 Treads 24 | . 28 28 26 25 17 13 Processor 17 | . . . 13 25 34 37 Energy Gun 1 | . 19 . . . . . Ballistic Gun 2 | . 8 . . . 6 . Ballistic Cannon 24 | . . 27 26 25 27 29 Launcher 9 | . 12 14 12 12 1 . Naked Turns . | . . . . . . . Heaviest Build 39 | 9 12 14 14 14 38 39 Greatest Support 40 | 40 40 40 40 40 40 40 Greatest Overweight (x) 1 | . . . . . . 1 Average Overweight (x) . | . . . . . . . Largest Inventory Capacity 1 | . . 1 1 1 1 1 Average Capacity . | . . . 1 1 1 1 Most Carried 1 | . . 1 1 1 1 1 Average Carried . | . . . 1 1 1 1 Final Capacity 1 | . . 1 1 1 1 1 Final Carried 1 | . . 1 1 1 1 1 Class Distribution -------------------- 73% | Mutant 26% | Gunner Dominant Class ---------------- Mutant | -10/Materials Mutant | -10/Mines Mutant | -10/Exiles Mutant | -9/Mines Gunner | -8/Materials Gunner | -8/Storage Resources | -11 -10 -10 -10 -9 -8 -8 ----------- Run | Scr Mat Min Exi Min Mat Sto Matter Collected 1827 | 250 49 203 116 168 1002 39 Remotely . | . . . . . . . Salvage Created 1564 | . 203 175 278 61 814 33 Parts 134 | . 19 18 26 19 48 4 Haulers Intercepted 2 | . . . . . 2 . Recyclers Shooed 1 | . . . . . 1 . Parts Field Recycled . | . . . . . . . Retrieved Matter . | . . . . . . . Parts Self-Destructed . | . . . . . . . Prevented . | . . . . . . . Kills | -11 -10 -10 -10 -9 -8 -8 ------- Run | Scr Mat Min Exi Min Mat Sto Combat Hostiles Destroyed 66 | . 8 15 4 12 23 4 Guns 10 | . 6 . . . 4 . Cannons 49 | . . 10 4 12 19 4 AOE 7 | . 2 5 . . . . Classes Destroyed 10 | . 4 . 1 1 4 . Worker 1 | . . . . . 1 . Hauler 2 | . . . . . 2 . Operator 3 | . 1 . . . 1 1 Watcher 2 | . 1 . . . 1 . Swarmer 31 | . 6 12 . 9 . 4 Grunt 25 | . 2 3 4 1 15 . Brawler 2 | . . . . . 2 . Sentry 6 | . . . . . 6 . Hunter 1 | . . . 1 . . . Assembled 2 | . . . . 2 . . Best Kill Streak 6 | . 4 6 1 4 5 5 Combat Bots Only 6 | . 3 6 1 4 4 4 Max Kills in Single Turn 3 | . 2 3 2 1 2 2 Gunslinging . | . . . . . . . Exploded 3 | . 2 3 . . . . Melee . | . . . . . . . Uniques/NPCs Destroyed . | . . . . . . . Combat | -11 -10 -10 -10 -9 -8 -8 -------- Run | Scr Mat Min Exi Min Mat Sto Damage Taken 2348 | . 222 310 . 350 1068 398 Core 1892 | . 177 240 . 279 880 316 Absorbed by Shields . | . . . . . . . Redirected to Core 1479 | . 135 204 . 215 641 284 Core Remaining (%) 70 | 100 . . . 40 . . Volleys Fired 149 | . 24 30 19 30 41 5 Largest 4 | . 3 3 2 2 4 4 Hottest 192 | . 90 100 70 70 192 192 Shots Fired 382 | . 49 63 38 60 153 19 Gun 76 | . 47 . . . 29 . Cannon 301 | . . 60 38 60 124 19 Launcher 5 | . 2 3 . . . . Special . | . . . . . . . Kinetic 340 | . 10 60 38 60 153 19 Thermal 13 | . 13 . . . . . Explosive 5 | . 2 3 . . . . Electromagnetic 24 | . 24 . . . . . Robot Hit Streak 13 | . 10 8 9 13 9 8 Robot Miss Streak 6 | . 4 2 2 6 3 1 Penetration Max 1 | . . . . . 1 . Secondary Targets . | . . . . . . . Shots Hit Robots 200 | . 27 30 23 30 83 7 Core Hits 106 | . 14 18 13 12 44 5 Critical Hits 12 | . . 1 . 1 8 2 Critical Kills 4 | . . . . 1 1 2 Critical Parts Destroyed 8 | . . 1 . . 7 . Melee Attacks . | . . . . . . . Impact . | . . . . . . . Slashing . | . . . . . . . Piercing . | . . . . . . . Sneak Attacks . | . . . . . . . Combat Hostiles . | . . . . . . . Follow-up Attacks . | . . . . . . . Damage Inflicted 4956 | . 459 831 473 575 2394 224 Guns 626 | . 329 . . . 297 . Cannons 3909 | . . 544 473 575 2093 224 Explosions 417 | . 130 287 . . . . Melee . | . . . . . . . Ramming 4 | . . . . . 4 . Kinetic 4246 | . 40 544 473 575 2390 224 Thermal 74 | . 74 . . . . . Explosive 417 | . 130 287 . . . . Electromagnetic 215 | . 215 . . . . . Impact . | . . . . . . . Slashing . | . . . . . . . Piercing . | . . . . . . . Highest Corruption . | . . . . . . . Average Corruption . | . . . . . . . Corruption Purged . | . . . . . . . Overload Shots . | . . . . . . . Overflow Damage 52 | . . 8 . 8 24 12 Projectiles 45 | . . 1 . 8 24 12 Explosions 7 | . . 7 . . . . Melee . | . . . . . . . Knockbacks 25 | . . 4 2 5 12 2 Impact . | . . . . . . . Kinetic 24 | . . 4 2 4 12 2 Secondary 1 | . . . . 1 . . Self-Inflicted Damage . | . . . . . . . Shots . | . . . . . . . Rammed 3 | . . . . . 3 . Targets Rammed 3 | . . . . . 3 . Kicked . | . . . . . . . Crushed . | . . . . . . . Highest Temperature 765 | . 270 72 27 96 765 246 Average Temperature 112 | . 90 29 10 37 186 126 Received Heat Transfer 636 | . 36 45 . 42 495 18 Effects 25 | . 2 . . . 23 . Shutdowns 4 | . . . . . 4 . Energy Bleed 4 | . 2 . . . 2 . Interference 11 | . . . . . 11 . Damage (minor) 2 | . . . . . 2 . Damage (major) 3 | . . . . . 3 . Damage (core) 1 | . . . . . 1 . Siege Activations . | . . . . . . . Robots Corrupted . | . . . . . . . Combat Hostiles . | . . . . . . . Parts Fried . | . . . . . . . Impact Corruptions . | . . . . . . . Robots Melted . | . . . . . . . Combat Hostiles . | . . . . . . . Parts Melted . | . . . . . . . Heat Transferred 222 | . 222 . . . . . Parts Sabotaged . | . . . . . . . Parts Stolen . | . . . . . . . Parts Stripped . | . . . . . . . Power Chain Reactions . | . . . . . . . Missiles Intercepted . | . . . . . . . Alert | -11 -10 -10 -10 -9 -8 -8 ------- Run | Scr Mat Min Exi Min Mat Sto Peak Influence 481 | . 204 224 . 160 481 204 Average Influence 159 | . 134 120 . 64 277 137 Maximum Alert Level 2 | . 1 1 . . 2 1 Low Security (%) 69 | 100 50 88 . 100 37 66 Level 1 21 | . 49 11 . . 36 33 Level 2 8 | . . . . . 25 . Level 3 . | . . . . . . . Level 4 . | . . . . . . . Level 5 . | . . . . . . . High Security . | . . . . . . . Max Security . | . . . . . . . Squads Dispatched 4 | . 2 . . . 1 1 Investigation 2 | . 1 . . . 1 . Extermination . | . . . . . . . Reinforcement 2 | . 1 . . . . 1 Assault . | . . . . . . . Garrison . | . . . . . . . Intercept . | . . . . . . . Construction Impeded . | . . . . . . . Haulers Reinforced . | . . . . . . . Stealth | -11 -10 -10 -10 -9 -8 -8 --------- Run | Scr Mat Min Exi Min Mat Sto Distress Signals 5 | . 1 1 . 1 2 . Communications Jammed . | . . . . . . . Distress Signals . | . . . . . . . Times Spotted 85 | . 15 12 . 16 33 9 Peak Tracking Total 9 | . 4 3 . 8 6 9 Tactical Retreats 4 | . . 2 . 2 . . Traps | -11 -10 -10 -10 -9 -8 -8 ------- Run | Scr Mat Min Exi Min Mat Sto Traps Triggered 2 | . . . . . 1 1 Indirectly . | . . . . . . . Trap Hack Attempts . | . . . . . . . Triggered . | . . . . . . . Disarmed . | . . . . . . . Reprogrammed . | . . . . . . . Reused . | . . . . . . . Traps Extracted . | . . . . . . . Installed . | . . . . . . . Triggered 1 | . 1 . . . . . Machines | -11 -10 -10 -10 -9 -8 -8 ---------- Run | Scr Mat Min Exi Min Mat Sto Machines Disabled 5 | . . 3 . . 2 . Max in Single Turn 1 | . . 1 . . 1 . Machines Sabotaged . | . . . . . . . Garrisons Compromised . | . . . . . . . Overloaded Fab Kills . | . . . . . . . Fab Network Shutdowns . | . . . . . . . Hacking | -11 -10 -10 -10 -9 -8 -8 --------- Run | Scr Mat Min Exi Min Mat Sto Machines Accessed 7 | . 1 1 . . 2 3 Terminals 7 | . 1 1 . . 2 3 Fabricators . | . . . . . . . Repair Stations . | . . . . . . . Recycling Units . | . . . . . . . Scanalyzers . | . . . . . . . Garrison Access . | . . . . . . . Total Hacks 9 | . 2 1 . . 2 4 Successful 7 | . 1 1 . . 2 3 Failed 2 | . 1 . . . . 1 Catastrophic . | . . . . . . . Database Lockouts . | . . . . . . . Manual 1 | . . . . . 1 . Terminals 9 | . 2 1 . . 2 4 Fabricators . | . . . . . . . Repair Stations . | . . . . . . . Recycling Units . | . . . . . . . Scanalyzers . | . . . . . . . Garrison Access . | . . . . . . . Terminal Hacks 7 | . 1 1 . . 2 3 Record 1 | . 1 . . . . . Prototype ID Bank 2 | . . . . . 1 1 Open Door 2 | . . . . . . 2 Zone Layout 2 | . . 1 . . 1 . Fabricator Hacks . | . . . . . . . Repair Station Hacks . | . . . . . . . Recycling Unit Hacks . | . . . . . . . Scanalyzer . | . . . . . . . Garrison Access Hacks . | . . . . . . . Unauthorized Hacks . | . . . . . . . Terminals . | . . . . . . . Fabricators . | . . . . . . . Repair Stations . | . . . . . . . Recycling Units . | . . . . . . . Scanalyzers . | . . . . . . . Garrison Access . | . . . . . . . Data Cores Recovered 1 | . . . . . 1 . Used . | . . . . . . . Hacking Detections 2 | . 1 . . . 1 . Full Trace Events . | . . . . . . . Feedback Events . | . . . . . . . Feedback Blocked . | . . . . . . . Robot Schematics Acquired . | . . . . . . . Robots Built . | . . . . . . . Matter . | . . . . . . . Time . | . . . . . . . Total Robot Build Rating . | . . . . . . . Part Schematics Acquired . | . . . . . . . Parts Built . | . . . . . . . Matter . | . . . . . . . Time . | . . . . . . . Total Part Build Rating . | . . . . . . . Parts Repaired . | . . . . . . . Time . | . . . . . . . Parts Recycled . | . . . . . . . Recycled Matter . | . . . . . . . Retrieved Matter . | . . . . . . . Retrieved Components . | . . . . . . . Parts Scanalyzed . | . . . . . . . Part Schematics Acquired . | . . . . . . . Parts Damaged . | . . . . . . . Bothacking | -11 -10 -10 -10 -9 -8 -8 ------------ Run | Scr Mat Min Exi Min Mat Sto Used RIF Installer . | . . . . . . . Robots Hacked . | . . . . . . . Non-combat . | . . . . . . . Combat . | . . . . . . . Robot Hacks Applied . | . . . . . . . Relay Couplers Released . | . . . . . . . Robots Rewired . | . . . . . . . Allies Hacked . | . . . . . . . Hacks Repelled . | . . . . . . . Allies | -11 -10 -10 -10 -9 -8 -8 -------- Run | Scr Mat Min Exi Min Mat Sto Total Allies 3 | . . 3 . . . . Largest Group 3 | . . 3 3 2 . . Highest-Rated Group 40 | . . 40 40 32 . . Highest-Rated Ally 16 | . . 16 16 16 . . Total Orders 2 | . . . . . . 2 ROAM 2 | . . . . . . 2 Ally Attacks 12 | . . . . 12 . . Total Damage 113 | . . . . 113 . . Kills 1 | . . . . 1 . . Allies Corrupted . | . . . . . . . Allies Melted 1 | . . . . 1 . . Intel | -11 -10 -10 -10 -9 -8 -8 ------- Run | Scr Mat Min Exi Min Mat Sto Robot Analysis Total . | . . . . . . . Derelict Logs Recovered 4 | . . 1 . 3 . . Drone Launches 16 | . . . . . . 16 Drone Recoveries . | . . . . . . . Exploration | -11 -10 -10 -10 -9 -8 -8 ------------- Run | Scr Mat Min Exi Min Mat Sto Turns Passed 4790 | 62 361 1185 1152 702 1161 167 Spaces Moved 2478 | 37 179 605 674 360 543 80 Core 3 | 3 . . . . . . Treads 2475 | 34 179 605 674 360 543 80 Legs . | . . . . . . . Wheels . | . . . . . . . Hover . | . . . . . . . Flight . | . . . . . . . Fastest Speed 50 | 50 160 160 160 160 160 160 Average Speed 159 | 151 160 160 160 160 160 163 Slowest Speed 180 | 160 160 160 160 160 160 180 Overloaded Moves . | . . . . . . . Propulsion Burnouts . | . . . . . . . Robots Hopped . | . . . . . . . Cave-ins Triggered 1 | . . . . . . 1 Exploration Rate (%) 59 | 3 43 94 93 70 52 59 Regions Visited 6 Branch Regions 4 Pre-discovered Areas . | . . . . . . . Known Exits Taken 1 | . . . . . 1 . Unknown Exits Taken 5 | 1 1 1 1 1 . . Scrap Searched 5 | . . 2 . 3 . . Spaces Dug . | . . . . . . . Terrain Destroyed 80 | . 3 18 . . 42 17 Melee . | . . . . . . . Projectile 59 | . . . . . 42 17 AOE 21 | . 3 18 . . . . Actions | -11 -10 -10 -10 -9 -8 -8 --------- Run | Scr Mat Min Exi Min Mat Sto Total 2986 | 41 208 761 709 426 737 104 Wait 241 | . 3 122 4 29 78 5 Move 2472 | 36 178 604 673 359 542 80 Hop . | . . . . . . . Pick Up 1 | . . 1 . . . . Fast Attach 34 | 5 2 2 2 . 18 5 Attach . | . . . . . . . Detach . | . . . . . . . Swap . | . . . . . . . Drop 17 | . 1 2 . . 13 1 Fire 149 | . 24 30 19 30 41 5 Melee . | . . . . . . . Ram . | . . . . . . . Kick . | . . . . . . . Crush 3 | . . . . . 3 . Escape Stasis . | . . . . . . . Rewire . | . . . . . . . Trap . | . . . . . . . Miscellaneous 69 | . . . 11 8 42 8 Route ------- -11/Scrapyard -10/Materials (discovered 2 exits: [*Mat] / *Min) -10/Mines (discovered 3 exits: [*Mat x2] / *Exi) -10/Exiles (discovered 2 exits: [*Min x2]) -9/Mines -8/Materials (discovered 3 exits: [*Fac] / *Sto x2) -8/Storage (discovered 1 exit: [*Fac]) History --------- Turn | Location | Event 4 | -11/Scrapyard | Upgraded with Propulsion slot (x1) 9 | -11/Scrapyard | Upgraded with Weapon slot (x1) 31 | -11/Scrapyard | Discovered new exit (range 15) 63 | -11/Scrapyard | Entered Materials 87 | -10/Materials | Upgraded with Weapon slot (x1) 314 | -10/Materials | Discovered new exit (range 16) 415 | -10/Materials | Discovered new exit (range 7) 424 | -10/Materials | Entered Mines 557 | -10/Mines | Build established: Mutant 669 | -10/Mines | Reached level 2 748 | -10/Mines | Found a damaged Exp. Sensor Array with a note attached 770 | -10/Mines | Found Prototype Device 975 | -10/Mines | Core integrity fell below 50% 979 | -10/Mines | Discovered new exit (range 8) 1233 | -10/Mines | Reached level 3 1348 | -10/Mines | Discovered new exit (range 14) 1358 | -10/Mines | Learned 2 Materials zone layouts 1427 | -10/Mines | Assisted by bots powering up and referring to "LRC-V3" 1508 | -10/Mines | Deemed a non-threat by the Exiles lab entrance 1508 | -10/Mines | Discovered new exit (range 5) 1609 | -10/Mines | Entered Exiles 1609 | -10/Exiles | Found Exiles lab destroyed 1609 | -10/Exiles | Accompanied by 3 allies 2155 | -10/Exiles | Upgraded with Utility slot (x1) 2472 | -10/Exiles | Discovered new exit (range 14) 2691 | -10/Exiles | Discovered new exit (range 12) 2761 | -10/Exiles | Entered Mines 2761 | -9/Mines | Accompanied by 2 allies 2763 | -9/Mines | Reached level 4 2847 | -9/Mines | Assembled infested the area 3386 | -9/Mines | Learned location of 1 exit from Materials 3436 | -9/Mines | Learned Materials terminal intel 3447 | -9/Mines | Discovered new exit (range 11) 3463 | -9/Mines | Entered Materials 3464 | -8/Materials | Identified exit to Storage 3464 | -8/Materials | Core integrity fell below 50% 3465 | -8/Materials | Reached level 5 3466 | -8/Materials | Loaded intel: 11 terminal locations 3510 | -8/Materials | Upgraded with Weapon slot (x1) 3552 | -8/Materials | Reached level 6 3642 | -8/Materials | Core integrity fell below 20% 3704 | -8/Materials | Upgraded with Utility slot (x1) 3780 | -8/Materials | Upgraded with Utility slot (x1) 3827 | -8/Materials | Build established: Gunner 3879 | -8/Materials | Discovered exit to Storage (range 3) 3934 | -8/Materials | Discovered new exit (range 3) 3945 | -8/Materials | Upgraded with Utility slot (x1) 4044 | -8/Materials | Reached level 7 4330 | -8/Materials | Upgraded with Utility slot (x1) 4624 | -8/Materials | Entered Storage 4626 | -8/Storage | Reached level 8 4707 | -8/Storage | Discovered new exit (range 71) 4744 | -8/Storage | Upgraded with Utility slot (x1) 4790 | -8/Storage | Reached level 9 4792 | -8/Storage | Crushed by falling debris 4792 | -8/Storage | Smashed by cave-in Last Messages --------------- Acquired 12 matter. O-16 Technician destroyed. Slug penetrates Wall. Y-45 Defender suffers critical hit. Slug penetrates Wall. Destroyed Flight Unit. S-10 Pest knocked back. S-10 Pest suffers critical hit. S-10 Pest destroyed. Slug penetrates Wall. S-10 Pest destroyed. S-10 Pest suffers critical hit. S-10 Pest destroyed. Slug penetrates Wall. Acquired 9 matter. Reached level 9. S-10 Pest destroyed. Slug penetrates Earth. The unstable cave ceiling collapses. Crushed by falling debris. Map ----- +----------------------------------------------------+ | | | | | | | | | | | | | | | | | | | | | | | ?????????????????????????????????????????????????? | | ????????????????????????????##???????????????????? | | ????????????????????????##### ####???????????????? | | ????????????????????????# #???????????????? | | ????????????????????????# #???????????????? | | ????????#####???????????# ###?????????????? | | #####???#= =#???????????# ""#???????????### | | # #???#= =#???????????#"""" T"#???????????+ | | # #???#= =#???????????#"""" ""#???????????# | | # #???#= #?###??###??#"""" ###???????????# | | # #??## #?# ####T####"""" #?????????????+ | | # #??#T #?# !!! # #?????????????# | | # #??## #?# !!! ####+;;#############+### | | # #####+##### ! ! # # | | # # [@%s ;#### ######## | | # ^= + r ] %=sYY ;#??# #??????# | | # # ;;# ##??# #??????# | | ##+######## # # # % #???# #??????# | | ?# T#???# # # # #???# #?###### | | ?## ###???# ########### # ;#??# #?#[[ + | | ?#! !#????# # ???? ####% # #?# #?#[[ # | | ?#! !#????# # ???? #??# ## ##%#?#[[ # | | ?#! !#????# # "????" #??# % ###;#+######## | | ?#! !#????# * # "????" #??# % # #???# | | ?#####????# % # "????" #??# # #???# | | ??????????# + """""" #??# # %t #???# | | ??????????# %# #??# # [ #???# | | ??????????# # #??# + ] ######+### | | ??????????# # #??# # ! # = ]## | | ??????????# ########/#??# # ! # ! ## | | ??????????# #??????# #??# # ! #] ! ## | | ??????????# #??????# #??# # #! ## | | ??????????# #??????# #### #############/##### | | ??????????# ########% % | | ??????????# | | ??????????# ######## | | ??????????# #????#"" | | ??????????##+########+###????#"" """ | | ??????????? ??????# ???????#"T """ | +----------------------------------------------------+ Best States ------------- Heat Dissipation 39 Energy Generation 14 Energy Capacity 275 Matter Stores 300 Matter Capacity 300 Sight Range 16 Terrain Scan Density 10 Evasion (%) 40 Targeting Accuracy 16 Target Analysis 5 Core Analysis 6 Recoil Reduction 4 Salvage Targeting 4 Item Schematics ----------------- None Robot Schematics ------------------ None Fabricated ------------ Nothing Alien Tech Used ----------------- None Achievements -------------- None Challenges ------------ None RPGLIKE | -11 -10 -10 -10 -9 -8 -8 --------- Run | Scr Mat Min Exi Min Mat Sto Levels Raised 8 | . . 2 . 1 3 2 XP Earned 15002 | 3000 985 2475 645 1793 4569 1535 XP Spent 13250 | 1000 800 1750 500 . 7200 2000 Upgrades 15 | 2 1 4 1 . 6 1 Propulsion Slot 1 | 1 . . . . . . Utility Slot 6 | . . . 1 . 4 1 Weapon Slot 3 | 1 1 . . . 1 . Inventory Capacity 1 | . . 1 . . . . KI Damage % 4 | . . 3 . . 1 . Protomatter Created 495 | . 36 16 124 27 293 -1 Integrity Restored 1251 | . . . 246 93 912 . Core 1251 | . . . 246 93 912 . Protomatter Decayed 116 | . 36 10 42 39 -11 . Game ------ Seed AssaultArmorStripper Manual? 0 Play Time 00:41:43 Cumulative 52.7 hours Start 2020.02.16 @ 16:50:45 End 2020.02.16 @ 18:01:35 Sessions 1 Manual Loads 0 Difficulty Rogue Special Mode Winter2019/RPGLIKE Game No. 54 Rogue 54 Adventurer 0 Explorer 0 Win Type - Total 0 Types 0/0/0/0/0/0/0 Lore% 22 Gallery% 28 Achievement% 28 Wizard Run 0 Options --------- ASCII 0 Keyboard 0 Movement Mouse Keybinds 0 Fullscreen 0 Font 32/SmallcapsGlow Map View 76x50 Tactical HUD 0 Map Filters NONE Filters NONE Steam 1 RUN: 84721fe9-a579-4220-8f37-cc437fcc073a